Cogmind - Beta 15 @@@ ROGUE MODE // 2025.06.02 @ 19:37:13 Player: Figgis Result: Destroyed by S-43 Plague with Heavy Machine Gun Performance ------------- Evolutions (9) 4500 Regions Visited (11) 2200 Robots Destroyed (73) 365 Value Destroyed (2754) 2754 Prototype IDs (32) 640 Alien Tech Used (0) 0 Bonus (3326) 3326 TOTAL SCORE: 13785 Bonus ------- High Alert Combat Kills 26 Registered with UFD 300 Met Optimus in HQ 500 Scanned by Researcher 500 Acquired SGEMP 2000 Cogmind --------- Core Integrity 0/1600 Matter 88/300 Energy 99/100 System Corruption 2% Temperature Cool (0) Movement Core (50) Location -1/Access Parts ------- > --- POWER (2) -------- (None) > --- PROPULSION (10) -- (None) > --- UTILITY (11) ----- Advanced Signal Interpreter Improved Terrain Scan Processor Improved Melee Analysis Suite Improved System Shield Improved System Shield > --- WEAPON (2) ------- (None) > --- INVENTORY (5) ---- Quantum Reactor Quantum Reactor Electron Diverter Advanced Weight Redist. System Advanced Shield Generator Peak State ------------ > --- POWER ------------ Light Antimatter Reactor Light Particle Reactor > --- PROPULSION ------- Impulse Thruster Impulse Thruster Impulse Thruster Impulse Thruster Impulse Thruster Q-thruster Impulse Thruster Array > --- UTILITY ---------- Medium Storage Unit Advanced Sensor Array Advanced Signal Interpreter Advanced Terrain Scanner Improved Terrain Scan Processor Advanced Reaction Control System Advanced Remote Shield Improved Hacking Suite Advanced Hacking Suite > --- WEAPON ----------- Centrium Greatsword > --- INVENTORY -------- Light Particle Reactor Impulse Thruster Advanced Terrain Scanner Advanced Terrain Scan Processor Advanced Shield Generator Improved System Shield Micro-nuke Launcher [Rating: 140] Favorites ----------- Power Ion Engine Engine Ion Engine Power Core Micro Fission Core Reactor Light Antimatter Reactor Propulsion Aluminum Leg Leg Aluminum Leg Flight Unit Impulse Thruster Utility Large Storage Unit Device Sensor Array Storage Large Storage Unit Processor Improved Terrain Scan Processor Hackware Hacking Suite Protection Layered Light Armor Plating Weapon Heavy Assault Rifle Energy Gun Small Laser Ballistic Gun Heavy Assault Rifle Ballistic Cannon Enhanced Gauss Cannon Launcher Micro-nuke Launcher Special Weapon Mining Laser Impact Weapon Power Maul Slashing Weapon Katana Piercing Weapon Lance Build | -11 -10 -10 -7 -5 -5 -5 -4 -3 -3 -2 -1 ------- Run | Yrd Mat Sub Scr Fac Was Fac Fac Res Tes Res Acc Slots Evolved 18 | . . . . 10 . . 2 2 . 2 2 Power 1 | . . . . 1 . . . . . . . Propulsion 8 | . . . . 4 . . 1 1 . 1 1 Utility 9 | . . . . 5 . . 1 1 . 1 1 Weapon . | . . . . . . . . . . . . Parts Attached 157 | 3 11 7 3 39 2 18 13 28 16 12 5 Power 19 | . 2 3 . 5 . 2 1 4 2 . . Engine 9 | . 2 3 . 4 . . . . . . . Core 5 | . . . . 1 . 2 . 1 1 . . Reactor 5 | . . . . . . . 1 3 1 . . Propulsion 57 | 2 . 1 1 15 2 3 7 14 4 5 3 Treads . | . . . . . . . . . . . . Leg 22 | 2 . 1 1 15 2 . . . . . 1 Wheel . | . . . . . . . . . . . . Hover . | . . . . . . . . . . . . Flight 35 | . . . . . . 3 7 14 4 5 2 Utility 54 | . 4 . 1 11 . 10 5 8 8 5 2 Device 25 | . 1 . . 5 . 4 2 6 4 2 1 Storage 4 | . 3 . . . . . . 1 . . . Processor 13 | . . . 1 2 . 4 1 . 2 2 1 Hackware 7 | . . . . 1 . 2 2 1 . 1 . Protection 5 | . . . . 3 . . . . 2 . . Artifact . | . . . . . . . . . . . . Weapon 27 | 1 5 3 1 8 . 3 . 2 2 2 . Energy Gun 1 | . 1 . . . . . . . . . . Energy Cannon . | . . . . . . . . . . . . Ballistic Gun 16 | 1 4 2 1 6 . 2 . . . . . Ballistic Cannon 2 | . . . . 2 . . . . . . . Launcher 1 | . . . . . . . . . . 1 . Special Weapon 1 | . . 1 . . . . . . . . . Impact Weapon 3 | . . . . . . . . 1 1 1 . Slashing Weapon 2 | . . . . . . 1 . 1 . . . Piercing Weapon 1 | . . . . . . . . . 1 . . Special Melee Weapon . | . . . . . . . . . . . . Unidentified Prototypes 12 | . . . . . . 2 1 2 5 2 . Parts Lost 93 | . 1 2 . 20 10 3 1 25 13 5 13 Power 16 | . 1 2 . 4 2 . . 4 1 . 2 Propulsion 43 | . . . . 8 5 1 1 14 6 1 7 Utility 25 | . . . . 5 2 1 . 6 5 3 3 Weapon 9 | . . . . 3 1 1 . 1 1 1 1 Highest Loss Streak 12 | . 1 1 . 6 10 1 1 10 9 5 12 To Critical Strikes 2 | . . . . 1 1 . . . . . . Average Backups 9 | 2 8 12 12 12 13 4 4 5 6 5 5 Power 1 | 1 2 1 1 . 1 . . . . 1 2 Propulsion 1 | . 1 2 1 3 4 . . . 1 . 1 Utility 4 | . 2 4 6 5 5 2 2 2 3 2 2 Weapon 2 | 1 2 4 2 2 2 1 2 1 1 . . Tool/Special . | . . . . . . . . . . . . Unused Backups 22 | . 1 1 4 3 7 2 . 1 . . 3 Power 2 | . . . . . . . . . . . 2 Propulsion 4 | . . . 1 1 2 . . . . . . Utility 10 | . . . 1 2 5 1 . . . . 1 Weapon 6 | . 1 1 2 . . 1 . 1 . . . Tool/Special . | . . . . . . . . . . . . Average Slot Usage (%) 88 | . 98 99 100 89 71 48 92 83 69 40 50 Engine 7 | . 13 13 14 4 4 . . . . . . Core 1 | . . . . 1 4 4 6 1 6 . 5 Leg 19 | . 27 28 28 31 27 1 . . . . 1 Flight 7 | . . . . . . 10 35 30 18 6 11 Device 12 | . 13 14 12 10 7 12 17 19 8 2 3 Storage 7 | . 13 14 14 5 4 . . 1 4 2 . Processor 6 | . . . 2 11 5 10 12 7 12 16 18 Hackware 3 | . . . . 4 4 3 9 9 5 7 8 Ballistic Gun 11 | . 22 21 20 6 3 . . . . . . Special Weapon 2 | . . 6 7 . . . . . . . . Peak Build Rating 140 | 3 10 12 23 92 81 71 110 140 137 62 97 Average Rating 50 | 2 8 10 12 74 68 46 103 119 112 50 67 On Entrance 40 | . 3 10 10 21 81 12 71 107 79 34 62 Naked Turns . | . . . . . . . . . . . . Heaviest Build 62 | 1 30 32 32 62 54 21 29 50 56 17 25 Greatest Support 135 | 3 20 20 20 135 126 29 51 61 63 26 39 Greatest Overweight (x) 6 | . 6 1 1 2 1 . 1 . 1 3 . Average Overweight (x) . | . . 1 1 . . . . . . . . Largest Inventory Capacity 15 | 5 15 15 15 15 15 5 5 10 10 10 5 Average Capacity 11 | 5 10 15 15 15 14 5 5 7 10 7 5 Most Carried 15 | 5 11 15 15 15 15 5 5 10 10 9 5 Average Carried 10 | 3 8 14 13 13 14 4 4 5 7 5 4 Final Capacity 15 | 5 15 15 15 15 5 5 5 10 10 5 5 Final Carried 15 | 5 11 15 15 15 5 5 5 10 10 5 5 Class Distribution -------------------- 65% | Mutant 15% | Hacker-Scout 4% | Skirmisher 3% | Hacker-Mutant 3% | Hacker-Sprinter 3% | Scout Dominant Class ---------------- Mutant | -10/Materials Mutant | -10/Subcaves Mutant | -7/Scraptown Mutant | -5/Factory Mutant | -5/Waste Scout | -5/Factory Hacker-Scout | -4/Factory Hacker-Scout | -3/Research Mutant | -3/Testing Hacker-Mutant | -2/Research Hacker-Mutant | -1/Access Resources | -11 -10 -10 -7 -5 -5 -5 -4 -3 -3 -2 -1 ----------- Run | Yrd Mat Sub Scr Fac Was Fac Fac Res Tes Res Acc Matter Collected 3267 | 221 195 292 27 1686 . 258 93 370 102 23 . Remotely . | . . . . . . . . . . . . Salvage Created 2800 | . 229 267 . 1563 . . 73 437 134 97 . Parts 163 | . 24 23 . 72 . . 4 32 2 6 . Haulers Intercepted . | . . . . . . . . . . . . Recyclers Shooed 5 | . . . . 5 . . . . . . . Parts Field Recycled . | . . . . . . . . . . . . Retrieved Matter . | . . . . . . . . . . . . Parts Self-Destructed . | . . . . . . . . . . . . Prevented . | . . . . . . . . . . . . Kills | -11 -10 -10 -7 -5 -5 -5 -4 -3 -3 -2 -1 ------- Run | Yrd Mat Sub Scr Fac Was Fac Fac Res Tes Res Acc Combat Hostiles Destroyed 52 | . 13 6 . 23 . . . 5 1 4 . Melee 5 | . . . . . . . . 4 1 . . Guns 37 | . 13 6 . 18 . . . . . . . Cannons 5 | . . . . 5 . . . . . . . AOE 4 | . . . . . . . . . . 4 . Classes Destroyed 16 | . 3 1 . 8 . . 1 1 2 . . Worker 2 | . . . . 1 . . . . . 1 . Builder 2 | . . . . 2 . . . . . . . Tunneler 1 | . . . . 1 . . . . . . . Recycler 1 | . . . . 1 . . . . . . . Operator 5 | . . . . . . . 1 3 1 . . Drone 1 | . . . . . . . . . 1 . . Watcher 9 | . 1 . . 3 . . 1 4 . . . Swarmer 19 | . 12 . . . . . . 3 . 4 . Cutter 2 | . . . . . . . . 2 . . . Grunt 13 | . 1 . . 12 . . . . . . . Brawler 1 | . . . . 1 . . . . . . . Researcher 2 | . . . . . . . . . 2 . . Sentry 2 | . . . . 2 . . . . . . . Hunter 3 | . . . . 3 . . . . . . . Programmer 5 | . . . . 5 . . . . . . . Subdweller 6 | . . 6 . . . . . . . . . Best Kill Streak 5 | . 4 2 . 5 . . 1 2 1 5 . Combat Bots Only 4 | . 3 2 . 4 . . . 2 1 4 . Max Kills in Single Turn 5 | . 1 1 . 2 . . 1 1 1 5 . Gunslinging . | . . . . . . . . . . . . Exploded 4 | . . . . . . . . . . 4 . Melee 1 | . . . . . . . . 1 1 . . Uniques/NPCs Destroyed . | . . . . . . . . . . . . Combat | -11 -10 -10 -7 -5 -5 -5 -4 -3 -3 -2 -1 -------- Run | Yrd Mat Sub Scr Fac Was Fac Fac Res Tes Res Acc Hostile Shots Fired 1325 | . 59 20 . 334 9 49 17 210 373 40 214 Missed 616 | . 16 5 . 93 2 28 12 131 225 12 92 Hits 709 | . 43 15 . 241 7 21 5 79 148 28 122 Melee 11 | . . . . 2 7 . . 2 . . . Projectile 698 | . 43 15 . 239 . 21 5 77 148 28 122 AOE 2 | . . . . . . . . 2 . . . Critical Strikes 23 | . . . . 10 2 . . 6 4 1 . Part Disruptions 1 | . . . . . . . . 1 . . . Damage Taken 13979 | . 332 323 . 4503 318 563 74 2388 2013 683 2782 Core 3700 | . 21 72 . 489 69 182 16 405 338 491 1617 Absorbed by Shields 709 | . . . . 187 . 108 27 35 352 . . Regen/Repaired (Parts) 116 | . . . . . . . 20 . 96 . . Core Remaining (%) 65 | 100 . . 62 . . 26 98 . 42 66 . Volleys Fired 206 | . 49 27 . 126 . 3 . . . 1 . Largest 2 | . 2 2 . 2 . 1 . . . 1 . Hottest 100 | . 60 100 . 80 . 100 . . . 49 . Shots Fired 397 | . 98 46 . 249 . 3 . . . 1 . Gun 326 | . 98 38 . 188 . 2 . . . . . Cannon 61 | . . . . 61 . . . . . . . Launcher 1 | . . . . . . . . . . 1 . Special 9 | . . 8 . . . 1 . . . . . Kinetic 357 | . 68 38 . 249 . 2 . . . . . Thermal 39 | . 30 8 . . . 1 . . . . . Explosive 1 | . . . . . . . . . . 1 . Electromagnetic . | . . . . . . . . . . . . Robot Hit Streak 16 | . 6 7 . 16 . . . . . . . Robot Miss Streak 8 | . 5 2 . 8 . . . . . . . Penetration Max 1 | . . . . 1 . . . . . . . Secondary Targets 2 | . . . . 2 . . . . . . . Max Gunslinging Chain 1 | . . . . 1 . . . . . . . Shots Hit Robots 257 | . 55 25 . 145 . . 8 15 7 2 . Core Hits 120 | . 19 12 . 69 . . 4 7 1 6 2 Critical Kills 3 | . . . . 3 . . . . . . . Critical Parts Destroyed 6 | . . . . 3 . . . 1 2 . . Critical Strikes 20 | . . . . 14 . . 3 1 2 . . Destroy 6 | . . . . 6 . . . . . . . Blast 8 | . . . . 8 . . . . . . . Smash 3 | . . . . . . . . 1 2 . . Sever 3 | . . . . . . . 3 . . . . Melee Attacks 145 | . . . . . . 9 31 75 24 6 . Impact 32 | . . . . . . . . 15 17 . . Slashing 100 | . . . . . . 9 31 60 . . . Piercing 13 | . . . . . . . . . 7 6 . Sneak Attacks 2 | . . . . . . . . 2 . . . Combat Hostiles . | . . . . . . . . . . . . Follow-up Attacks . | . . . . . . . . . . . . Damage Inflicted 7830 | . 678 379 . 4158 . . 307 1361 320 587 40 Guns 3834 | . 678 379 . 2777 . . . . . . . Cannons 1377 | . . . . 1377 . . . . . . . Explosions 502 | . . . . . . . . . . 502 . Melee 2073 | . . . . . . . 307 1361 320 85 . Ramming 44 | . . . . 4 . . . . . . 40 Kinetic 4950 | . 417 379 . 4154 . . . . . . . Thermal 261 | . 261 . . . . . . . . . . Explosive 502 | . . . . . . . . . . 502 . Electromagnetic . | . . . . . . . . . . . . Impact 362 | . . . . . . . . 73 289 . . Slashing 1595 | . . . . . . . 307 1288 . . . Piercing 116 | . . . . . . . . . 31 85 . Highest Corruption 25 | . . . . 17 25 25 . 24 25 . 2 Average Corruption 14 | . . . . 8 23 25 . 9 24 . 2 Corruption Purged . | . . . . . . . . . . . . Corruption Blocked 7 | . . . . . . . . . 7 . . Effects 132 | . . . . 41 6 39 . 22 24 . . Message Errors 26 | . . . . 5 . 13 . 3 5 . . Matter Fused 27 | . . . . 10 1 8 . 5 3 . . Heat Flow Errors 10 | . . . . 2 . 5 . 2 1 . . Energy Discharges 13 | . . . . 7 1 1 . 1 3 . . Parts Rejected 3 | . . . . . . . . 1 2 . . Parts Fused 4 | . . . . 1 1 2 . . . . . Data Loss (minor) 17 | . . . . 5 2 4 . 3 3 . . Data Loss (major) 4 | . . . . 2 . . . 2 . . . Misfires 4 | . . . . 4 . . . . . . . Alerts 4 | . . . . 1 . . . 2 1 . . Misdirections 16 | . . . . . 1 6 . 3 6 . . Weapon Failures 4 | . . . . 4 . . . . . . . Overload Shots . | . . . . . . . . . . . . Overflow Damage 481 | . . . . 70 . . 11 291 102 7 . Projectiles 70 | . . . . 70 . . . . . . . Explosions . | . . . . . . . . . . . . Melee 411 | . . . . . . . 11 291 102 7 . Knockbacks 18 | . . . . 17 . . . . 1 . . Impact 3 | . . . . 2 . . . . 1 . . Kinetic 14 | . . . . 14 . . . . . . . Secondary 1 | . . . . 1 . . . . . . . Self-Inflicted Damage 73 | . . . . . . . . . . 56 17 Shots 1 | . . . . . . . . . . 1 . Rammed 8 | . . . . . . . . . . . 8 Targets Rammed 15 | . . . . 3 . . . . . . 12 Kicked 7 | . . . . 3 . . . . . . 4 Crushed . | . . . . . . . . . . . . Highest Temperature 318 | . 60 . . 277 . 269 318 199 248 . . Average Temperature 89 | . 25 . . 75 . 109 53 110 85 . . Received Heat Transfer 1612 | . 12 60 . 1078 . 123 39 165 63 72 . Siege Activations . | . . . . . . . . . . . . Martial Activations . | . . . . . . . . . . . . Shielding Activations . | . . . . . . . . . . . . Robots Disrupted . | . . . . . . . . . . . . Combat Hostiles . | . . . . . . . . . . . . Robots Corrupted 4 | . . . . . . . . 1 3 . . Combat Hostiles 1 | . . . . . . . . 1 . . . Parts Fried 9 | . . . . . . . . 2 7 . . Impact Corruptions 9 | . . . . . . . . 2 7 . . Robots Melted . | . . . . . . . . . . . . Combat Hostiles . | . . . . . . . . . . . . Parts Melted 2 | . 2 . . . . . . . . . . Heat Transferred 550 | . 550 . . . . . . . . . . Parts Sabotaged . | . . . . . . . . . . . . Parts Stolen . | . . . . . . . . . . . . Parts Stripped . | . . . . . . . . . . . . Power Chain Reactions . | . . . . . . . . . . . . Alert | -11 -10 -10 -7 -5 -5 -5 -4 -3 -3 -2 -1 ------- Run | Yrd Mat Sub Scr Fac Was Fac Fac Res Tes Res Acc Maximum Alert Level 2 | . . . . 1 . 1 . 2 2 2 1 Low Security (%) 76 | 100 100 . . 97 100 20 100 72 37 5 5 Level 1 20 | . . . . 2 . 79 . 12 57 76 94 Level 2 3 | . . . . . . . . 15 4 18 . Level 3 . | . . . . . . . . . . . . Level 4 . | . . . . . . . . . . . . Level 5 . | . . . . . . . . . . . . High Security . | . . . . . . . . . . . . Max Security . | . . . . . . . . . . . . Peak Influence 673 | . 116 . . 221 75 379 133 673 476 422 302 Initial 303 | . . . . . 75 . 128 . 303 267 247 Average 113 | . 34 . . 61 43 237 70 147 234 297 242 Influence Increases 4736 | . 356 . . 750 . 741 142 1599 633 275 240 Destroy 0b10 Robot/C 940 | . 260 . . 460 . . . 100 40 80 . Destroy 0b10 Robot/NC 105 | . 5 . . 40 . . 10 35 10 5 . Destroy Leader 188 | . 52 . . 106 . . 2 18 . 10 . Successful Hack 170 | . 23 . . 13 . 50 10 36 38 . . Disable Machine 75 | . . . . 45 . . . . 30 . . Destroy Structure 303 | . 1 . . 86 . 16 30 90 20 60 . Partial Spotted 270 | . . . . . . 60 . 165 15 . 30 Lose Combat Pursuer 2685 | . 15 . . . . 615 90 1155 480 120 210 Influence Decreases 4509 | . 356 . . 535 215 478 405 1059 697 339 425 Entered New Map 886 | . . . . . 140 . 135 . 237 209 165 Time Decay 2025 | . 346 . . 391 35 288 260 315 180 80 130 Search Patrol Dispatched 300 | . . . . . . . . 300 . . . Lost Part 784 | . 10 . . 144 40 30 10 240 130 50 130 Lost Ally 10 | . . . . . . 10 . . . . . Purge Threat 504 | . . . . . . 150 . 204 150 . . Squads Dispatched 52 | . 1 . . 7 . 8 5 19 9 2 1 Investigation 21 | . . . . 2 . 5 4 8 2 . . Extermination 14 | . . . . 3 . 1 1 6 1 1 1 Reinforcement 17 | . 1 . . 2 . 2 . 5 6 1 . Assault . | . . . . . . . . . . . . Garrison . | . . . . . . . . . . . . Intercept . | . . . . . . . . . . . . Searches Triggered 2 | . . . . . . . . 2 . . . Construction Impeded 2 | . . . . 2 . . . . . . . Haulers Reinforced . | . . . . . . . . . . . . Active Scanning Responses . | . . . . . . . . . . . . Cargo Convoy Interrupts . | . . . . . . . . . . . . Stealth | -11 -10 -10 -7 -5 -5 -5 -4 -3 -3 -2 -1 --------- Run | Yrd Mat Sub Scr Fac Was Fac Fac Res Tes Res Acc Distress Signals 14 | . 1 . . 2 . 1 1 4 4 . 1 Communications Jammed 10 | . . . . . . . . . 10 . . Distress Signals . | . . . . . . . . . . . . Times Spotted 330 | . 25 6 . 35 6 39 19 89 57 19 35 Peak Tracking Total 21 | . 4 2 . 7 6 8 7 21 21 9 13 Tactical Retreats 57 | . 1 . . . . 14 3 24 9 2 4 Traps | -11 -10 -10 -7 -5 -5 -5 -4 -3 -3 -2 -1 ------- Run | Yrd Mat Sub Scr Fac Was Fac Fac Res Tes Res Acc Traps Triggered 10 | . 2 . . 1 . 3 1 2 . . 1 Indirectly . | . . . . . . . . . . . . Trap Hack Attempts . | . . . . . . . . . . . . Triggered . | . . . . . . . . . . . . Disarmed . | . . . . . . . . . . . . Reprogrammed . | . . . . . . . . . . . . Reused . | . . . . . . . . . . . . Traps Extracted . | . . . . . . . . . . . . Installed . | . . . . . . . . . . . . Triggered . | . . . . . . . . . . . . Machines | -11 -10 -10 -7 -5 -5 -5 -4 -3 -3 -2 -1 ---------- Run | Yrd Mat Sub Scr Fac Was Fac Fac Res Tes Res Acc Machines Disabled 6 | . . . . 3 . . . . 3 . . Max in Single Turn 1 | . . . . 1 . . . . 1 . . Garrison Access 5 | . . . . 1 . 1 1 1 1 . . Machines Repaired . | . . . . . . . . . . . . Machines Dismantled . | . . . . . . . . . . . . Machines Sabotaged . | . . . . . . . . . . . . Overloaded Fab Kills . | . . . . . . . . . . . . Hacking | -11 -10 -10 -7 -5 -5 -5 -4 -3 -3 -2 -1 --------- Run | Yrd Mat Sub Scr Fac Was Fac Fac Res Tes Res Acc Machines Accessed 71 | . 3 . 4 6 . 15 12 19 9 2 1 Terminals 41 | . 3 . . 3 . 9 5 13 7 1 . Fabricators 4 | . . . . . . 1 1 1 1 . . Repair Stations 2 | . . . . . . 1 1 . . . . Recycling Units 13 | . . . . 2 . 2 4 4 . 1 . Scanalyzers . | . . . . . . . . . . . . Garrison Access 7 | . . . . 1 . 2 1 1 1 . 1 Total Hacks 182 | . 9 . 29 12 . 35 28 44 17 6 2 Successful 101 | . 5 . 29 6 . 11 19 24 7 . . Failed 81 | . 4 . . 6 . 24 9 20 10 6 2 Catastrophic 28 | . 1 . . 2 . 10 . 6 6 3 . Database Lockouts . | . . . . . . . . . . . . Manual 89 | . 6 . . 11 . 22 14 30 3 3 . Terminals 112 | . 9 . . 6 . 23 18 38 15 3 . Fabricators 5 | . . . . . . 2 1 1 1 . . Repair Stations 3 | . . . . . . 1 2 . . . . Recycling Units 24 | . . . . 5 . 6 6 4 . 3 . Scanalyzers . | . . . . . . . . . . . . Garrison Access 9 | . . . . 1 . 3 1 1 1 . 2 Terminal Hacks 57 | . 4 . 29 . . 3 7 10 4 . . Record 29 | . . . 29 . . . . . . . . Part Schematic 1 | . . . . . . . . . 1 . . Robot Analysis 2 | . 2 . . . . . . . . . . Prototype ID Bank 1 | . . . . . . . 1 . . . . Open Door 1 | . . . . . . . . . 1 . . Branch Access Points 2 | . . . . . . . 1 1 . . . Emergency Access Points 1 | . . . . . . . . . 1 . . Alert Level 1 | . . . . . . . 1 . . . . Unreport Threat 5 | . . . . . . 1 . 3 1 . . Locate Traps 3 | . 1 . . . . 2 . . . . . Dispatch Records 1 | . . . . . . . 1 . . . . Recall Investigation 3 | . . . . . . . . 3 . . . Recall Extermination 3 | . . . . . . . 1 2 . . . Recall Reinforcements 2 | . . . . . . . 1 1 . . . Registered Components 1 | . . . . . . . 1 . . . . Zone Layout 1 | . 1 . . . . . . . . . . Fabricator Hacks 4 | . . . . . . 1 1 1 1 . . Network Status 4 | . . . . . . 1 1 1 1 . . Repair Station Hacks 2 | . . . . . . . 2 . . . . Scan Component 1 | . . . . . . . 1 . . . . Repair 1 | . . . . . . . 1 . . . . Recycling Unit Hacks . | . . . . . . . . . . . . Scanalyzer . | . . . . . . . . . . . . Garrison Access Hacks 6 | . . . . 1 . 2 1 1 1 . . Seal Access 5 | . . . . 1 . 1 1 1 1 . . Coupler Status 1 | . . . . . . 1 . . . . . Unauthorized Hacks 31 | . 1 . . 5 . 5 8 11 1 . . Terminals 21 | . 1 . . 3 . 5 4 7 1 . . Assimilate 1 | . . . . . . 1 . . . . . Botnet 20 | . 1 . . 3 . 4 4 7 1 . . Fabricators . | . . . . . . . . . . . . Repair Stations . | . . . . . . . . . . . . Recycling Units 10 | . . . . 2 . . 4 4 . . . Fedlink 10 | . . . . 2 . . 4 4 . . . Scanalyzers . | . . . . . . . . . . . . Garrison Access . | . . . . . . . . . . . . Data Cores Recovered 5 | . . . . . . . 1 3 1 . . Used 2 | . . . . . . . 1 1 . . . Hacking Detections 52 | . 3 . . 5 . 13 8 14 6 2 1 Full Trace Events 11 | . . . . . . 5 . 4 2 . . Feedback Events . | . . . . . . . . . . . . Feedback Blocked . | . . . . . . . . . . . . Robot Schematics Acquired . | . . . . . . . . . . . . Robots Built . | . . . . . . . . . . . . Authchips . | . . . . . . . . . . . . Time . | . . . . . . . . . . . . Total Robot Build Rating . | . . . . . . . . . . . . Part Schematics Acquired 6 | . . . . . . . . . 6 . . Parts Built . | . . . . . . . . . . . . Authchips . | . . . . . . . . . . . . Time . | . . . . . . . . . . . . Total Part Build Rating . | . . . . . . . . . . . . Parts Repaired 1 | . . . . . . . 1 . . . . Time 50 | . . . . . . . 50 . . . . Parts Recycled . | . . . . . . . . . . . . Recycled Matter . | . . . . . . . . . . . . Retrieved Matter . | . . . . . . . . . . . . Retrieved Components . | . . . . . . . . . . . . Parts Scanalyzed . | . . . . . . . . . . . . Part Schematics Acquired . | . . . . . . . . . . . . Parts Damaged . | . . . . . . . . . . . . Bothacking | -11 -10 -10 -7 -5 -5 -5 -4 -3 -3 -2 -1 ------------ Run | Yrd Mat Sub Scr Fac Was Fac Fac Res Tes Res Acc Used RIF Installer . | . . . . . . . . . . . . Robots Hacked . | . . . . . . . . . . . . Non-combat . | . . . . . . . . . . . . Combat . | . . . . . . . . . . . . Robot Hacks Applied . | . . . . . . . . . . . . Relay Couplers Released . | . . . . . . . . . . . . Fabnet Peak Effective % . | . . . . . . . . . . . . Robots Rewired . | . . . . . . . . . . . . Allies Hacked . | . . . . . . . . . . . . Hacks Repelled . | . . . . . . . . . . . . Allies | -11 -10 -10 -7 -5 -5 -5 -4 -3 -3 -2 -1 -------- Run | Yrd Mat Sub Scr Fac Was Fac Fac Res Tes Res Acc Total Allies 1 | . . . . . . 1 . . . . . Largest Group 1 | . . . . . . 1 . . . . . Highest-Rated Group 10 | . . . . . . 10 . . . . . Highest-Rated Ally 10 | . . . . . . 10 . . . . . Total Orders . | . . . . . . . . . . . . Ally Attacks . | . . . . . . . . . . . . Total Damage . | . . . . . . . . . . . . Kills . | . . . . . . . . . . . . Allies Corrupted . | . . . . . . . . . . . . Allies Melted . | . . . . . . . . . . . . Intel | -11 -10 -10 -7 -5 -5 -5 -4 -3 -3 -2 -1 ------- Run | Yrd Mat Sub Scr Fac Was Fac Fac Res Tes Res Acc Active Infowar (turns) 9157 | . 1317 1313 1976 1942 93 568 626 1156 149 . 17 Sensors 8926 | . 1317 1313 1976 1942 93 568 571 1146 . . . Terrain 2900 | . . . . 562 . 534 626 1059 119 . . Jamming 64 | . . . . . . . . . 64 . . ECM 17 | . . . . . . . . . . . 17 Robot Analysis Total 2 | . 2 . . . . . . . . . . Derelict Logs Recovered 4 | . . . 4 . . . . . . . . Drone Launches . | . . . . . . . . . . . . Drone Recoveries . | . . . . . . . . . . . . Exploration | -11 -10 -10 -7 -5 -5 -5 -4 -3 -3 -2 -1 ------------- Run | Yrd Mat Sub Scr Fac Was Fac Fac Res Tes Res Acc Turns Passed 10484 | 30 1347 1313 2300 1944 95 719 626 1289 369 175 277 Spaces Moved 11545 | 41 849 623 1172 1041 69 1768 1084 3211 803 278 606 Core 130 | 41 23 . . . 2 . . . . 2 62 Treads . | . . . . . . . . . . . . Legs 3764 | . 826 623 1172 1041 67 . . . . . 35 Wheels . | . . . . . . . . . . . . Hover . | . . . . . . . . . . . . Flight 7651 | . . . . . . 1768 1084 3211 803 276 509 Fastest Speed 17 | 50 50 190 190 120 50 29 17 22 27 29 28 Average Speed 72 | 50 130 190 190 132 123 35 27 24 31 48 41 Slowest Speed 350 | 50 350 190 190 260 190 45 114 37 100 200 120 Overloaded Moves 670 | . . . . . . 433 237 . . . . Propulsion Burnouts 1 | . . . . . . . 1 . . . . Robots Hopped 56 | . . . . . . 9 6 24 11 5 1 Potential Cave-ins 7 | . . . . . . . 2 5 . . . Cave-ins Triggered 2 | . . . . . . . . 2 . . . Exploration Rate (%) 50 | 3 98 37 83 34 90 45 30 65 92 12 19 Regions Visited 11 Branch Regions 3 Pre-discovered Areas 1 | . . . . 1 . . . . . . . Known Exits Taken 4 | . . . . . . 1 1 1 1 . . Unknown Exits Taken 5 | 1 1 1 1 . . . . . . 1 . Scrap Searched 3 | . . . 3 . . . . . . . . Spaces Dug 118 | . . . . 6 . 8 18 53 10 23 . Terrain Destroyed 160 | . . . . 48 . 8 18 53 10 23 . Melee 89 | . . . . . . 8 18 53 10 . . Projectile 46 | . . . . 46 . . . . . . . AOE 23 | . . . . . . . . . . 23 . Terrain Rammed . | . . . . . . . . . . . . Walls Destroyed . | . . . . . . . . . . . . Machines Disabled . | . . . . . . . . . . . . Actions | -11 -10 -10 -7 -5 -5 -5 -4 -3 -3 -2 -1 --------- Run | Yrd Mat Sub Scr Fac Was Fac Fac Res Tes Res Acc Total 12954 | 48 1001 687 1248 1359 75 1835 1351 3555 866 304 625 Wait 681 | . 69 14 54 96 . 15 217 211 3 2 . Move 11435 | 40 848 622 1171 1041 68 1750 1071 3168 782 270 604 Hop 45 | . . . . . . 8 6 19 9 2 1 Pick Up 130 | 5 14 7 10 32 1 9 4 25 16 6 1 Fast Attach 61 | 3 4 1 . 9 5 11 10 8 2 2 6 Attach 93 | . 5 1 1 24 1 9 1 21 17 12 1 Detach 12 | . . . . . . 4 . 3 4 1 . Swap 41 | . 5 11 4 10 . 1 4 5 1 . . Drop 68 | . 7 4 8 18 . 5 7 13 4 2 . Fire 206 | . 49 27 . 126 . 3 . . . 1 . Melee 145 | . . . . . . 9 31 75 24 6 . Ram 8 | . . . . . . . . . . . 8 Kick 7 | . . . . 3 . . . . . . 4 Crush . | . . . . . . . . . . . . Escape Stasis 22 | . . . . . . 11 . 7 4 . . Rewire . | . . . . . . . . . . . . Trap . | . . . . . . . . . . . . Miscellaneous . | . . . . . . . . . . . . Route ------- -11/Scrapyard -10/Materials (discovered 6 exits: [*Mat x3] / [*Min x2] / [*Sub]) -10/Subcaves -7/Scraptown -5/Factory -5/Waste -5/Factory (discovered 2 exits: *Fac / *Upp) -4/Factory (discovered 3 exits: *Res / Upp x2) -3/Research (discovered 4 exits: *Res / *Arm / *Tes x2) -3/Testing -2/Research -1/Access History --------- Turn | Location | Event 14 | -11/Scrapyard | Discovered new exit (range 14) 31 | -11/Scrapyard | Entered Materials 301 | -10/Materials | Build established: Mutant 362 | -10/Materials | Discovered new exit (range 9) 514 | -10/Materials | Discovered new exit (range 6) 579 | -10/Materials | Discovered new exit (range 9) 765 | -10/Materials | Discovered new exit (range 4) 837 | -10/Materials | Discovered new exit (range 16) 1362 | -10/Materials | Discovered new exit (range 9) 1378 | -10/Materials | Entered Subcaves 1379 | -10/Subcaves | Approached by a straggling Scientist 2243 | -10/Subcaves | Scientist uncovered a shortcut to Scraptown 2430 | -10/Subcaves | Shifting Twisted Machinery released Battle Cannon 2446 | -10/Subcaves | Shifting Twisted Machinery released Battle Rifle 2691 | -10/Subcaves | Entered Scraptown 2756 | -7/Scraptown | Heard Great Nut preacher, LISTEN AND RECITE! 2973 | -7/Scraptown | Visited Comm Corps 3328 | -7/Scraptown | Visited TADAMA 3343 | -7/Scraptown | Visited Symbiants 3442 | -7/Scraptown | Scanned Subdweller tech in exchange for log data 3446 | -7/Scraptown | Learned location of 2 exits from Upper Caves 3448 | -7/Scraptown | Learned Research terminal intel 3450 | -7/Scraptown | Learned Factory terminal intel 3451 | -7/Scraptown | Learned 12 Research zone layouts 4000 | -7/Scraptown | Visited Fellowship of the Rings 4052 | -7/Scraptown | Visited IN-MT5's Study 4122 | -7/Scraptown | Visited UFD Registry 4122 | -7/Scraptown | Registered with UFD as "Flashcore" 4164 | -7/Scraptown | Visited Chapter 10 4190 | -7/Scraptown | Visited Junk Repository 4246 | -7/Scraptown | Visited Junk Repository 4355 | -7/Scraptown | Delivered Scrap Shield to a Scientist 4449 | -7/Scraptown | Visited A0-MCA Data Center 4460 | -7/Scraptown | Given a B rating by A0-MCA 4462 | -7/Scraptown | Found A0-MCA's Component Scanner 4498 | -7/Scraptown | Visited Derelict Rescue Squad 4522 | -7/Scraptown | Found DRS Beacon 4555 | -7/Scraptown | Visited Research Penetration Think Tank 4605 | -7/Scraptown | Visited Scrap Suit Storage 4662 | -7/Scraptown | Visited Curators Association 4870 | -7/Scraptown | Met Optimus 4870 | -7/Scraptown | Accepted into 0bPrime 4982 | -7/Scraptown | Discovered new exit (range 5) 4991 | -7/Scraptown | Entered Factory 4991 | -5/Factory | Evolved 10 slots: Power x1, Propulsion x4, Utility x5 4992 | -5/Factory | Loaded intel: 26 terminal locations 5211 | -5/Factory | Loaded intel: 8 recycling unit locations 5288 | -5/Factory | Build established: Skirmisher 5330 | -5/Factory | Lost 6 parts (1p4n1u) 5500 | -5/Factory | Lost 3 parts (1p1n1w) 5587 | -5/Factory | Lost 3 parts (2u1w) 5830 | -5/Factory | Lost 3 parts (1p2n) 5864 | -5/Factory | Build established: Mutant 6726 | -5/Factory | System corruption reached 10% 6924 | -5/Factory | Learned location of Protoforge (-2) 6935 | -5/Factory | Sucked down chute 6935 | -5/Factory | Entered Waste 6945 | -5/Waste | Spotted C-40 Crusher 6950 | -5/Waste | EMP discharged 6966 | -5/Waste | Spotted C-40 Crusher 6973 | -5/Waste | Spotted C-40 Crusher 6976 | -5/Waste | Crushed by Compactor (1 part destroyed, 1 dropped) 6981 | -5/Waste | Spotted C-40 Crusher 6987 | -5/Waste | Spotted C-40 Crusher 6992 | -5/Waste | Spotted C-40 Crusher 6996 | -5/Waste | Discovered new exit (range 16) 6998 | -5/Waste | Crushed by Compactor (1 part destroyed, 1 dropped) 7008 | -5/Waste | Crushed by Compactor (1 part destroyed, 2 dropped) 7011 | -5/Waste | Crushed by Compactor (1 part destroyed, 1 dropped) 7016 | -5/Waste | Crushed by Compactor (1 part destroyed, 1 dropped) 7017 | -5/Waste | Core integrity fell below 50% 7027 | -5/Waste | Crushed by Compactor (1 part destroyed, 1 dropped) 7028 | -5/Waste | Crushed by Compactor (1 part destroyed, 2 dropped) 7030 | -5/Waste | Entered Factory 7059 | -5/Factory | Lost 10 parts (2p5n2u1w) 7273 | -5/Factory | Discovered new exit (range 12) 7523 | -5/Factory | Discovered new exit (range 15) 7689 | -5/Factory | Identified exit to Upper Caves 7749 | -5/Factory | Identified exit to Factory 7749 | -5/Factory | Entered another Factory area 7749 | -4/Factory | Evolved 2 slots: Propulsion x1, Utility x1 7801 | -4/Factory | Loaded intel: 8 recycling unit locations 8256 | -4/Factory | Discovered new exit (range 18) 8278 | -4/Factory | Identified exit to Upper Caves 8351 | -4/Factory | Repaired Adv. Sensor Array 8364 | -4/Factory | Identified exit to Research 8375 | -4/Factory | Entered Research 8375 | -3/Research | Evolved 2 slots: Propulsion x1, Utility x1 8377 | -3/Research | Loaded intel: 22 terminal locations 8479 | -3/Research | Loaded intel: 5 recycling unit locations 8644 | -3/Research | Build established: Hacker-Scout 8812 | -3/Research | Spotted B-86 Titan 9145 | -3/Research | Discovered new exit (range 7) 9158 | -3/Research | Identified exit to Research 9173 | -3/Research | Spotted B-86 Titan 9254 | -3/Research | Crushed by falling debris 9311 | -3/Research | Crushed by falling debris 9311 | -3/Research | System corruption reached 10% 9345 | -3/Research | Identified exit to Armory 9345 | -3/Research | Identified exit to Testing 9349 | -3/Research | Lost 4 parts (1p3n) 9375 | -3/Research | Search patrols dispatched 9510 | -3/Research | Lost 10 parts (1p4n4u1w) 9613 | -3/Research | Spotted B-86 Titan 9617 | -3/Research | Lost 3 parts (2n1u) 9625 | -3/Research | Search patrols dispatched 9664 | -3/Research | Entered Testing 9677 | -3/Testing | Lost 3 parts (1p2n) 9687 | -3/Testing | Found Prototype Device 9687 | -3/Testing | Identified Exp. Shield Generator 9737 | -3/Testing | Spotted PL-QL0ICNDWYJ 9747 | -3/Testing | Scanned by Researcher 9812 | -3/Testing | Found Lgt. Regenerative Plating 9814 | -3/Testing | Found Prototype Protection 9815 | -3/Testing | Identified Med. Regenerative Plating 9922 | -3/Testing | Spotted PH-RW3X20COE6 9954 | -3/Testing | Found Prototype Device 9960 | -3/Testing | Spotted Striker 9961 | -3/Testing | Spotted Striker 9967 | -3/Testing | Spotted Alpha 7 9968 | -3/Testing | Stole the SGEMP Prototype 10002 | -3/Testing | Core integrity fell below 50% 10004 | -3/Testing | Identified Adv. Kinecellerator 10026 | -3/Testing | Discovered exit to Research (range 12) 10033 | -3/Testing | Entered Research 10033 | -2/Research | Evolved 2 slots: Propulsion x1, Utility x1 10061 | -2/Research | Lost 9 parts (5n3u1w) 10173 | -2/Research | Lost 5 parts (1n3u1w) 10198 | -2/Research | Discovered new exit (range 8) 10208 | -2/Research | Entered Access 10208 | -1/Access | Evolved 2 slots: Propulsion x1, Utility x1 10452 | -1/Access | Core integrity fell below 50% 10468 | -1/Access | Core integrity fell below 20% 10482 | -1/Access | Lost 12 parts (2p7n2u1w) 10485 | -1/Access | Destroyed by S-43 Plague with Heavy Machine Gun Last Messages --------------- 10444_ U-05 Engineer lays Concrete. 10445_ Centrium Leg destroyed. 10450_ Adv. Terrain Scan Processor destroyed. 10450_ Acquired Xenon Bombardment Thruster. 10451_ Xenon Bombardment Thruster destroyed. 10452_ Slammed into U-05 Engineer. 10453_ U-05 Engineer suffers critical hit (Destroy). 10459_ Slammed into S-43 Plague. 10462_ Destabilizing: System interference. 10462_ Imp. Melee Analysis Suite temporarily disabled. 10463_ Slammed into S-43 Plague. 10464_ W-44 Eye sends out distress signal. 10464_ Slammed into S-43 Plague. 10464_ Penetrated by Slug. 10465_ U-05 Engineer destroyed. 10467_ R-10 Processor collects Terrain Scanner. 10467_ Penetrated by Slug. 10471_ Slammed into U-05 Engineer. 10471_ Destabilizing: System corrupted (+2). 10482_ Adv. ECM Suite destroyed. Map ----- +----------------------------------------------------+ | ?????????????????????????????????????????????????? | | ?????????????????????????????????????????????????? | | ?????????????????????????????????????????????????? | | ?????????????????????????????????????????????????? | | ?????????????????????????????????????????????????? | | ?????????????????????????????????????????????????? | | ?????????????????????????????????????????????????? | | ?????????????????????????????????????????????????? | | ?????????????????????????????????????????????????? | | ?????????????????????????????????????????????????? | | ?????????????????????????????????????????????????? | | ?????????????????????????????????????????????????? | | ?????????????????????????????????????????????????? | | ????????????????####?????????????????????????????? | | ?????????????? ?????????????????????????????? | | ?????????????? ????????????????????????????? | | ????????????? ????????????????????????????? | | ????????????? ???????????????############# | | ???????????? ???????????????# | | ???????????? u ??????????????# | | ????????????? ############### | | ???????????????# # !! | | ???????????????# # !! | | ???????????????# # | | ???????????????# + | | ???????????????# @ # ! | | ???????????????# # | | ???????????????# s# | | ???????????????####+########## # | | ?????????????????????????????# s s# | | ?????????????????????????????# s ############# | | ?????????????????????????????# s #???????????? | | ?????????????????????????????# #???????????? | | ?????????????????????????????# #???????????? | | ?????????????????????????????# #???????????? | | ?????????????????????????????#### ####???????????? | | ????????????????????????????????# #??????????????? | | ????????????????????????????????# #??????????????? | | ????????????????????????????????# #??????????????? | | ????????????????????????????????# #??#####???????? | | ????????????????????????????????# #??# #???????? | | ????????????????????????????????# #??# #???????? | | ????????????????????????????????# #??# #???????? | | ???????????????????????????#????# #??## ##???????? | | ????????????????????????? **??# #???# #????????? | | ????????????????????????? ** # ##### #????????? | | ???????????????????????????? / #????????? | | ????????????????????????????????# #????????? | | ????????????????????????????????# ########## | | ??????????????????????????##????# # | +----------------------------------------------------+ Best States ------------- Heat Dissipation 52 Coolant Potential 100 Energy Generation 39 Energy Capacity 425 Matter Stores 300 Matter Capacity 300 Sight Range 16 Robot Scan Range 16 Terrain Scan Range 24 Terrain Scan Density 310 ECM Strength 2 Jamming Range 16 Corruption Block 15 Armor Coverage 375 Phase Shifting 10 Evasion (%) 86 Targeting Accuracy 6 Melee Accuracy 6 Core Analysis 6 Kinecelleration 30 Offensive Hacking 26 Defensive Hacking 24 Item Schematics ----------------- Thermal Defense Suite | -3/Testing | Archive Com. Tesla Bomb Launcher | -3/Testing | Archive Com. Particle Reactor | -3/Testing | Archive Adv. Myomer Leg | -3/Testing | Archive Gravity Neutralizer | -3/Testing | Archive Lgt. Regenerative Plating | -3/Testing | Hacked Robot Schematics ------------------ None Fabricated ------------ Nothing Repaired ---------- Adv. Sensor Array | 16% | -4/Factory Alien Tech Used ----------------- None Achievements -------------- None Challenges ------------ None Game ------ Seed DroneCloakBoomstick Manual? 0 Play Time 02:06:56 Cumulative 176.8 hours Start 2025.06.02 @ 17:30:23 End 2025.06.02 @ 19:37:13 Sessions 1 Manual Loads 0 Difficulty Rogue Special Mode None Game No. 273 Rogue 270 Adventurer 3 Explorer 0 Win Type - Total 1 Types 1/0/0/0/0/0/0/0/0/0 Lore% 60 Gallery% 58 Achievement% 46 Wizard Run 0 Options --------- Layout 0 ASCII 0 Keyboard 0 Movement Mouse Keybinds 0 Fullscreen 2 Font 18/SmallcapsGlow Map View 76x50 Zoom Use 0% Tactical HUD 1 Map Filters NONE Filters NONE Steam 1 RUN: 72a36149-aa26-45eb-a444-86daa569d2b2